bitfinex/quotes_ETHUSD_20220202
["timestamp","ask_amount","ask_price","bid_price","bid_amount"]
[1643819129870,0.17928199,2662.0,2661.5,0.91107013]
[1643819130071,0.17928199,2662.0,2661.3,0.1877]
[1643819130277,1.23989,2661.9,2661.8,0.00469297]
[1643819130672,4.03752,2661.9,2661.8,0.00469297]
[1643819130872,7.92436626,2661.9,2661.8,0.00389297]
[1643819131073,1.79633773,2661.8,2661.4,0.01877469]
[1643819131279,2.15,2661.6,2660.5,4.6831]
[1643819131474,0.94032,2661.2,2660.5,4.6831]
[1643819131673,0.15940072,2661.0,2660.5,4.6831]
[1643819132322,1.3,2661.2,2660.5,5.58201507]
[1643819132525,0.9403,2660.9,2660.5,4.6831]
[1643819132728,0.9403,2660.9,2660.1,13.5815]
[1643819132729,0.9403716,2660.7,2660.2,5.105]
[1643819132931,0.9403716,2660.7,2660.2,4.9171]
[1643819133224,0.3,2660.6,2660.2,4.9171]
[1643819133624,0.3,2660.6,2660.2,5.83167608]
[1643819133823,0.3,2660.6,2660.3,0.00142791]
[1643819134224,1.24039,2660.6,2660.3,0.00142791]
[1643819134824,1.24039,2660.6,2660.2,4.9171]
[1643819134825,0.9404,2660.5,2660.0,0.1879]
[1643819135027,0.9404454,2660.4,2660.3,0.00471277]
[1643819135425,1.16274848,2660.4,2660.3,0.00471277]
[1643819136086,1.16274848,2660.4,2659.8,0.18905945]
[1643819136087,0.94055,2660.2,2659.8,0.18905945]
[1643819136382,0.94056,2660.1,2659.8,0.02001405]
[1643819136582,3.7622089,2660.1,2659.8,0.0188546]
[1643819136782,1.24055,2660.2,2659.8,0.0188546]
[1643819137287,1.24055,2660.2,2659.7,4.92275945]
[1643819137485,0.94055,2660.2,2659.9,0.00465102]
[1643819137688,0.94024,2660.9,2660.5,0.79016598]
[1643819137884,0.94024,2660.9,2660.0,0.1879]
[1643819138684,0.94024,2660.9,2660.3,0.00465024]
[1643819138986,0.00190247,2660.4,2660.3,0.00465024]
[1643819139618,0.00190247,2660.4,2660.0,0.1879]
[1643819140018,0.00190247,2660.4,2660.2,0.00465041]
[1643819140219,0.00190247,2660.4,2660.3,4.09110431]
[1643819140832,0.94232247,2660.4,2659.9,0.1879]
[1643819141124,0.94232247,2660.4,2660.2,0.0046527]
[1643819141125,0.00190247,2660.4,2660.2,0.0046527]
[1643819141324,0.3,2660.3,2660.2,0.0046527]
[1643819141823,0.00190247,2660.4,2660.2,0.0046527]
[1643819142022,0.00190247,2660.4,2659.9,0.19806611]
[1643819142224,0.00190247,2660.4,2660.3,2.8]
[1643819142624,0.00190247,2660.4,2660.3,5.5]
[1643819143028,0.00190247,2660.4,2660.3,5.6879]
[1643819143029,2.47e-06,2660.4,2660.3,5.6879]
[1643819143472,2.47e-06,2660.4,2660.3,5.70009336]
[1643819143670,2.47e-06,2660.4,2660.3,5.88761336]
[1643819143868,0.94171835,2661.4,2660.3,5.88761336]
[1643819144071,0.94171835,2661.4,2660.4,0.1879]
[1643819144469,0.94171835,2661.4,2660.8,0.20475863]
[1643819144875,0.00165835,2661.4,2661.0,0.01261253]
[1643819145370,0.00165835,2661.4,2661.1,0.20132505]
[1643819145773,0.00165835,2661.4,2661.2,0.87695334]
[1643819145979,0.00165835,2661.4,2661.2,0.70568485]
[1643819146371,0.00165835,2661.4,2661.1,0.1923507]
[1643819146575,0.00165835,2661.4,2661.1,0.0046507]
[1643819146771,0.00165835,2661.4,2660.9,5.9556]
[1643819147134,0.00165835,2661.4,2661.2,0.207426]
[1643819147335,0.30165835,2661.4,2661.3,5.37975689]
[1643819147635,0.00165835,2661.4,2661.3,5.37975689]
[1643819148234,0.00165835,2661.4,2661.3,5.56745689]
[1643819149536,0.00165835,2661.4,2661.3,5.37975689]
[1643819151474,5.835e-05,2661.4,2661.3,7.03175689]
[1643819151670,5.835e-05,2661.4,2661.3,8.21945689]
[1643819151872,5.835e-05,2661.4,2661.3,7.4897]
[1643819152469,5.835e-05,2661.4,2661.3,7.67722]
[1643819152870,5.835e-05,2661.4,2661.3,8.67762301]
[1643819153070,5.835e-05,2661.4,2661.3,7.67722]
[1643819153670,5.835e-05,2661.4,2661.3,6.4897]
[1643819153876,5.835e-05,2661.4,2661.3,4.8377]
[1643819154074,0.00153118,2661.4,2661.3,4.8377]
[1643819155621,0.00153118,2661.4,2661.3,4.65]
[1643819156425,0.00153118,2661.4,2661.3,5.85]
[1643819156621,0.00153118,2661.4,2661.3,7.15]
[1643819156824,0.00153118,2661.4,2661.3,5.85]
[1643819157023,0.00153118,2661.4,2661.3,4.65]
[1643819157223,0.00153118,2661.4,2661.3,4.5]
[1643819158470,0.00470207,2661.5,2661.2,0.00465053]
[1643819158471,0.00470207,2661.5,2661.4,4.8028599]
[1643819158870,1.0,2662.5,2661.4,4.8028599]
[1643819159075,1.0,2662.5,2661.7,0.19108344]
[1643819159272,0.18752,2662.6,2661.7,0.19108344]
[1643819159470,0.93966,2662.7,2661.4,4.8028599]
[1643819160072,0.18752,2662.6,2661.4,4.8028599]
[1643819160472,0.00470179,2662.2,2661.4,4.8028599]
[1643819161272,0.93966,2662.7,2662.0,0.86365751]
[1643819161577,0.00470192,2661.9,2661.5,7.0894]
[1643819161874,0.00470192,2661.9,2661.8,4.96207198]
[1643819162127,0.00470192,2661.9,2661.8,4.8]
[1643819162522,0.93966,2662.7,2661.8,5.50620388]
[1643819162727,0.0047019,2662.0,2661.9,4.9459]
[1643819162923,0.0047019,2662.0,2661.9,5.2459]
[1643819163322,0.0047019,2662.0,2661.9,9.8959]
[1643819163524,0.0047019,2662.0,2661.9,11.6479]
[1643819163525,1.9e-06,2662.0,2661.9,11.6479]
[1643819163723,2.43484626,2663.2,2661.9,11.6479]
[1643819163921,0.00138609,2662.1,2662.0,0.010914]
[1643819164127,0.00138609,2662.1,2662.0,7.302]
[1643819164324,0.00138609,2662.1,2662.0,10.3599017]
[1643819164325,8.609e-05,2662.1,2662.0,10.3599017]
[1643819164524,8.609e-05,2662.1,2662.0,11.54760169]
[1643819164925,8.609e-05,2662.1,2662.0,11.95975039]
[1643819165126,8.609e-05,2662.1,2662.0,13.55094596]
[1643819165323,8.609e-05,2662.1,2662.0,21.21944596]
[1643819165523,2.43484626,2663.9,2662.3,1.87807]
[1643819165724,2.43484626,2663.9,2663.5,0.92643884]
[1643819165977,10.00261108,2664.0,2663.5,0.92643884]
[1643819166275,1.88409307,2664.7,2663.6,0.01118803]
[1643819166475,0.01289726,2665.0,2663.6,0.01118803]
[1643819166476,0.44692843,2664.0,2663.6,0.01118803]
[1643819166677,2.43484626,2664.8,2663.6,0.01118803]
[1643819167174,2.08072616,2664.9,2663.8,0.18323788]
[1643819167373,0.38415309,2664.9,2663.8,0.18323788]
[1643819167574,0.3332669,2664.9,2663.8,0.18323788]
[1643819167774,0.00501421,2664.3,2663.8,0.19026626]
[1643819167975,0.00501421,2664.3,2663.8,0.18323788]
[1643819168175,0.00501421,2664.3,2663.9,0.1875]
[1643819168475,0.00501421,2664.3,2664.0,5.43393539]
[1643819168674,2.26690929,2665.5,2664.6,0.93460791]
[1643819168874,2.26690929,2665.5,2664.6,0.85267377]
[1643819168875,0.18752,2665.5,2664.6,0.85267377]
[1643819169073,2.07161307,2665.5,2664.6,0.85267377]
[1643819169279,0.93875,2665.4,2664.6,0.84114712]
[1643819170025,0.00501369,2665.1,2664.6,0.84114712]
[1643819170226,0.00501369,2665.1,2664.6,1.14982852]
[1643819170524,0.00501369,2665.1,2664.6,1.14114712]
[1643819170726,0.00501369,2665.1,2664.3,6.37845454]
[1643819171027,0.16258602,2665.4,2664.3,6.1735]
[1643819171334,0.93891,2664.9,2664.1,7.6348]
[1643819171526,0.93891,2664.9,2664.1,6.3916]
[1643819171726,0.93891,2664.9,2664.1,7.16342655]
[1643819172227,1.42643,2664.9,2664.0,4.9686]
[1643819172426,1.42643,2664.9,2663.6,1.3934]
[1643819172427,0.93906,2664.8,2663.6,0.1875]
[1643819172628,0.48752,2664.9,2663.5,4.8849]
[1643819172629,0.00501401,2664.6,2663.5,4.8849]
[1643819172829,0.19975447,2664.5,2663.5,4.8849]
[1643819173028,0.19975447,2664.5,2662.5,0.1875]
[1643819173029,0.65175447,2664.5,2662.5,0.1875]
[1643819173227,0.65175447,2664.5,2663.3,1.02575997]
[1643819173228,0.93931,2664.0,2663.3,1.02575997]
[1643819173486,0.48752,2664.3,2663.3,1.02575997]
[1643819173685,0.00330361,2664.1,2663.3,1.02575997]
[1643819174284,0.00330361,2664.1,2663.6,0.22257085]
[1643819174486,0.00330361,2664.1,2663.7,0.80969737]
[1643819174683,0.18752,2664.3,2663.7,0.80969737]
[1643819174684,0.18752,2664.3,2663.8,4.956]
[1643819174886,0.02003799,2664.2,2663.8,4.956]
[1643819175083,0.02003799,2664.2,2663.3,0.13819997]
[1643819175286,0.18752,2664.1,2663.1,0.1877]
[1643819175485,0.18752,2664.1,2662.9,11.364]
[1643819175784,0.12003673,2664.0,2662.9,11.55698554]
[1643819176086,0.00501031,2663.7,2662.9,5.14898554]
[1643819176482,0.00501031,2663.7,2663.0,0.87538176]
[1643819176682,0.94432031,2663.7,2663.0,0.87538176]
[1643819176882,1.24432031,2663.7,2663.0,0.87538176]
[1643819177128,1.23931,2663.7,2662.9,4.956]
[1643819177328,0.00501047,2663.5,2662.9,4.956]
[1643819177724,1.00501047,2663.5,2662.9,4.956]
[1643819177927,0.30501047,2663.5,2662.9,4.956]
[1643819178226,0.30501047,2663.5,2662.3,0.32589997]
[1643819178227,1.12692,2663.4,2662.3,0.32589997]
[1643819178432,1.12692,2663.4,2661.7,17.398]
[1643819178433,1.57892,2663.4,2661.7,17.398]
[1643819178728,0.30501057,2663.3,2661.7,17.398]
[1643819178925,0.18752,2663.2,2661.7,17.398]
[1643819179126,0.93962,2663.0,2662.0,0.82307528]
[1643819179326,0.93962,2663.0,2661.9,0.20712071]
[1643819179327,1.00737979,2663.0,2661.9,0.20712071]
[1643819179526,1.30737979,2663.0,2661.9,0.20712071]
[1643819179730,0.00501105,2662.6,2661.9,0.20712071]
[1643819180326,0.00501105,2662.6,2661.9,1.15269466]
[1643819180526,2.61176986,2662.9,2661.9,1.15269466]
[1643819180730,1.37714,2663.0,2661.9,1.15269466]
[1643819180979,0.00501118,2662.4,2661.9,1.15269466]
[1643819181774,0.93968,2662.6,2661.9,1.15269466]
[1643819182175,0.00501124,2662.3,2661.9,1.15269466]
[1643819182975,1.0,2662.8,2662.0,0.1877]
[1643819183176,0.93959,2662.9,2662.0,0.1877]
[1643819183375,1.128e-05,2662.2,2662.0,0.1877]
[1643819183680,2.45913396,2663.1,2662.1,5.85]
[1643819183974,0.13752,2663.4,2662.1,5.85]
[1643819183975,0.00137181,2662.3,2662.1,5.85]
[1643819184176,0.00137181,2662.3,2662.1,6.15]
[1643819184375,7.181e-05,2662.3,2662.1,6.15]
[1643819184621,7.181e-05,2662.3,2662.2,6.85]
[1643819184822,7.181e-05,2662.3,2662.2,5.85]
[1643819185831,7.181e-05,2662.3,2662.0,0.1877]
[1643819186824,7.181e-05,2662.3,2661.7,17.2103]
[1643819187125,7.181e-05,2662.3,2661.9,0.00501187]
[1643819187126,0.00508296,2662.3,2661.9,0.00501187]
[1643819187325,0.30508296,2662.3,2661.9,0.00501187]
[1643819187724,0.00508296,2662.3,2661.9,0.00501187]
[1643819187925,7.181e-05,2662.3,2661.7,4.8402]
[1643819188123,0.0050829,2662.3,2661.9,0.00501181]
[1643819188575,0.0050829,2662.3,2662.0,0.89282234]
[1643819189175,0.0050829,2662.3,2661.7,4.8402]
[1643819189176,7.181e-05,2662.3,2661.7,4.8402]
[1643819189376,0.00134993,2662.3,2661.7,4.8402]
[1643819189577,0.00636108,2662.3,2661.9,0.00501187]
[1643819190278,0.00636108,2662.3,2661.9,0.98802842]
[1643819190678,0.00636102,2662.3,2661.9,0.99304023]
[1643819191084,0.93952,2663.2,2662.0,5.85]
[1643819191282,0.13752,2663.4,2662.5,0.01216589]
[1643819191483,1.31208998,2663.5,2662.5,0.02472739]
[1643819192127,2.25147998,2663.5,2663.2,0.17622669]
[1643819192325,2.25147998,2663.5,2662.5,0.01216589]
[1643819192326,0.93939,2663.5,2662.5,0.01216589]
[1643819192526,0.93939,2663.5,2662.3,1.39475325]
[1643819192831,0.93939,2663.5,2662.3,1.1996]
[1643819193026,0.93939,2663.5,2662.3,1.3873]
[1643819193225,1.23939,2663.5,2662.3,1.3873]
[1643819193425,1.23939,2663.5,2663.1,0.18659128]
[1643819194426,1.23939,2663.5,2662.3,1.3873]
[1643819194427,0.93939,2663.5,2662.9,0.81337596]
[1643819194626,0.93939,2663.5,2662.3,1.3873]
[1643819195430,0.00501076,2663.0,2662.7,0.21104514]
[1643819195626,0.00501076,2663.0,2662.7,0.93569944]
[1643819196075,0.00501076,2663.0,2662.7,0.7246543]
[1643819196376,2.57456909,2663.4,2662.3,1.1996]
[1643819196575,2.57456909,2663.4,2662.2,6.05123503]
[1643819196576,0.00501079,2663.0,2662.2,5.86353503]
[1643819196777,0.00501079,2663.0,2662.2,5.8511]
[1643819196778,0.45701079,2663.0,2662.2,5.8511]
[1643819196976,0.75701079,2663.0,2662.2,5.8511]
[1643819197176,0.89453079,2663.0,2662.2,5.8511]
[1643819197577,0.88952,2663.0,2662.2,5.8511]
[1643819197777,0.00501095,2662.7,2662.2,5.8511]
[1643819198177,0.00501095,2662.7,2662.2,6.06476432]
[1643819198777,0.13752,2662.8,2662.2,6.06476432]
[1643819198977,0.00501105,2662.6,2662.2,5.8511]
[1643819199925,0.13752,2662.8,2662.2,5.8511]
[1643819200124,0.13752,2662.8,2662.3,0.18342792]
[1643819200325,0.00501108,2662.5,2662.3,1.00863445]
[1643819201225,0.43752,2662.8,2662.3,1.00863445]
[1643819201425,0.00501108,2662.5,2662.3,1.00863445]
[1643819202424,0.94081747,2662.9,2662.3,1.00863445]
[1643819202828,0.00501108,2662.5,2662.3,0.18342792]
[1643819203684,1.37833747,2662.9,2662.3,0.18342792]
[1643819203884,0.00501108,2662.5,2662.3,0.18342792]
[1643819204087,0.00501108,2662.5,2662.4,3.4734323]
[1643819204983,0.00501108,2662.5,2662.4,2.75]
[1643819205183,0.93959,2662.9,2662.4,2.75]
[1643819205184,0.00501105,2662.6,2662.4,2.75]
[1643819205587,0.00501105,2662.6,2662.3,0.18342792]
[1643819205984,0.93969,2662.6,2662.2,5.8511]
[1643819206386,0.94470105,2662.6,2662.2,5.8511]
[1643819206585,0.00501105,2662.6,2662.2,5.8511]
[1643819206786,0.00501105,2662.6,2662.1,0.95274886]
[1643819206986,0.00501105,2662.6,2662.5,3.7131124]
[1643819207235,0.43752,2662.8,2662.5,3.7131124]
[1643819207236,0.13752,2663.4,2662.5,3.7131124]
[1643819207426,1.44960998,2663.8,2662.6,0.1877]
[1643819208026,0.93946,2663.4,2662.5,3.7131124]
[1643819208230,1.07698,2663.4,2662.5,3.7131124]
[1643819208434,1.07698,2663.4,2663.0,0.19202309]
[1643819208729,3.77507667,2663.9,2663.0,0.19202309]
[1643819208730,0.13752,2663.6,2663.0,0.19202309]
[1643819208928,0.00497397,2663.3,2663.0,0.19202309]
[1643819209729,0.13752,2663.4,2663.0,0.19202309]
[1643819209926,0.004974,2663.3,2663.0,0.19202309]
[1643819210626,0.004974,2663.3,2662.6,0.1877]
[1643819210888,0.13752,2663.4,2662.6,0.1877]
[1643819211082,0.9444506,2663.3,2662.6,0.1877]
[1643819211480,0.9444506,2663.3,2662.5,2.6]
[1643819211681,0.9444506,2663.3,2662.7,0.19725893]
[1643819212082,0.93944,2663.3,2662.7,0.19725893]
[1643819212283,0.00501076,2663.0,2662.7,0.19725893]
[1643819212582,0.00501076,2663.0,2662.5,3.44155893]
[1643819213182,0.13752,2663.2,2662.5,2.6]
[1643819213385,1.13752,2663.2,2662.5,2.6]
[1643819213583,0.00501086,2662.9,2662.5,2.6]
[1643819213785,2.61156091,2662.9,2662.2,1.3485]
[1643819214084,2.74908091,2662.9,2662.2,1.1608]
[1643819214283,1.0,2662.8,2662.1,6.3992123]
[1643819214484,2.60974145,2662.7,2662.1,6.3942]
[1643819214726,0.93971,2662.6,2662.1,6.3942]
[1643819214924,0.93971,2662.6,2662.1,6.39921205]
[1643819215423,0.93971,2662.6,2662.1,7.09822683]
[1643819215623,0.93971,2662.6,2662.1,7.09321478]
[1643819215830,0.93971,2662.6,2662.1,7.09203552]
[1643819216028,0.00501111,2662.5,2662.1,7.09704732]
[1643819216624,0.00501111,2662.5,2662.1,6.39803254]
[1643819216827,0.93971,2662.6,2662.1,6.39302074]
[1643819217226,0.93963,2662.7,2662.3,0.21772434]
[1643819217227,0.00501115,2662.4,2662.3,0.21772434]
[1643819217826,0.00501115,2662.4,2662.3,4.36772434]
[1643819218026,1.13752,2662.9,2662.3,4.36772434]
[1643819218227,1.13752,2662.9,2662.7,1.10789183]
[1643819218680,0.13752,2662.9,2662.3,4.15]
[1643819219079,0.00134034,2662.4,2662.3,4.15]
[1643819219777,0.00501095,2662.7,2662.3,4.36441635]
[1643819219979,0.00501095,2662.7,2662.6,0.87865476]
[1643819220579,0.13752,2663.1,2662.7,0.21740219]
[1643819220782,0.00501092,2662.8,2662.7,0.21740219]
[1643819220978,0.00501092,2662.8,2662.6,0.87865476]
[1643819221778,0.13752,2663.1,2662.6,0.87865476]
[1643819221979,0.00501089,2662.8,2662.6,0.87865476]
[1643819222227,0.00501089,2662.8,2662.7,0.20815409]
[1643819222731,0.00501089,2662.8,2662.6,0.87865476]
[1643819222930,0.13250964,2663.1,2662.3,4.24326081]
[1643819223130,0.00501086,2662.9,2662.3,4.24326081]
[1643819224132,0.00119925,2662.8,2662.3,4.24326081]
[1643819224332,0.00119925,2662.8,2662.7,0.89838068]
[1643819224732,0.00119925,2662.8,2662.7,3.14838068]
[1643819224932,0.00119925,2662.8,2662.7,0.89838068]
[1643819226378,0.00119925,2662.8,2662.7,1.08876794]
[1643819226777,0.00119925,2662.8,2662.7,4.04838068]
[1643819228277,0.00119925,2662.8,2662.7,0.89838068]
[1643819228884,0.00119925,2662.8,2662.4,0.35199582]
[1643819229078,0.00119925,2662.8,2662.3,4.43096081]
[1643819230024,0.00119925,2662.8,2662.5,0.76128511]
[1643819230424,0.00501098,2662.7,2662.5,0.76128511]
[1643819230724,0.00501098,2662.7,2662.3,4.43096081]
[1643819230924,0.00501098,2662.7,2662.3,4.24326081]
[1643819231126,0.00501098,2662.7,2662.3,0.09326081]
[1643819231327,0.00119925,2662.8,2662.3,0.09326081]
[1643819231530,0.00501102,2662.6,2662.3,0.09326081]
[1643819232328,0.00501102,2662.6,2662.5,4.45]
[1643819232526,0.00119925,2662.8,2662.5,4.45]
[1643819232726,0.00501105,2662.6,2662.5,4.45]
[1643819233380,0.00501105,2662.6,2662.5,5.31563572]
[1643819233779,0.00119925,2662.8,2662.5,5.31563572]
[1643819233981,0.00118602,2662.6,2662.5,5.31563572]
[1643819235179,8.602e-05,2662.6,2662.5,5.12426802]
[1643819235380,8.602e-05,2662.6,2662.5,6.541442]
[1643819235586,1.098e-05,2662.7,2662.6,5.85]
[1643819235881,1.098e-05,2662.7,2662.6,13.8526551]
[1643819236079,0.02003444,2663.9,2662.6,17.31135537]
[1643819236280,0.02003444,2663.9,2663.1,0.9389645]
[1643819236480,2.46174433,2664.1,2663.8,0.70075473]
[1643819236481,0.00261037,2664.1,2663.8,0.70075473]
[1643819236685,1.87829317,2664.5,2663.8,0.70075473]
[1643819236881,0.00261037,2664.5,2663.8,0.70075473]
[1643819237333,0.00261037,2664.5,2663.8,1.63963833]
[1643819238536,9.40819244,2664.8,2663.8,1.63963833]
[1643819238737,1.8756828,2664.8,2664.1,0.9388143]
[1643819239037,1.8756828,2664.9,2664.1,0.9388143]
[1643819239435,0.67350964,2665.0,2664.1,0.94600765]
[1643819239436,2.54919244,2665.0,2664.1,0.94600765]
[1643819239635,2.54919244,2665.0,2664.1,0.9388143]
[1643819239837,2.54919244,2665.0,2664.2,0.81113624]
[1643819240037,0.00500973,2664.6,2664.2,0.99016353]
[1643819240876,1.87768,2665.1,2664.2,0.99016353]
[1643819241079,1.87768,2665.1,2664.6,0.8717881]
[1643819241289,0.02003616,2664.9,2664.6,0.8717881]
[1643819241477,0.02003616,2664.9,2664.3,0.9387029]
[1643819241879,0.02003616,2664.9,2664.3,1.2387029]
[1643819242276,0.00261106,2665.2,2664.3,0.9387029]
[1643819242476,0.00329819,2664.7,2664.4,0.82287332]
[1643819243078,0.00329819,2664.7,2664.5,4.826]
[1643819243276,0.00261106,2665.2,2664.5,4.83768645]
[1643819243676,0.00329819,2664.7,2664.5,5.13768645]
[1643819243877,0.00329819,2664.7,2664.6,5.3]
[1643819244077,0.00329819,2664.7,2664.5,4.826]
[1643819244735,0.00133401,2665.0,2664.5,4.826]
[1643819244939,0.0050155,2664.7,2664.5,4.826]
[1643819245134,0.0050155,2664.7,2664.5,5.126]
[1643819245336,1.55e-05,2664.7,2664.6,7.22502]
[1643819245534,0.00261106,2665.3,2664.7,6.79576957]
[1643819245736,0.00261106,2665.3,2664.8,1.1875]
[1643819245934,0.00261106,2665.6,2664.8,1.0]
[1643819246333,0.00261106,2665.6,2665.0,1.13366232]
[1643819246536,0.00261106,2665.7,2665.0,1.13366232]
[1643819246735,0.00261106,2665.7,2665.0,1.14246329]
[1643819247138,0.00261106,2665.9,2665.0,1.14246329]
[1643819247335,0.00261106,2665.9,2665.4,0.89635273]
[1643819247536,0.00261106,2665.9,2665.4,1.07368169]
[1643819247736,0.02261106,2666.1,2665.1,0.9384357]
[1643819248137,0.02261106,2666.1,2665.0,13.7972]
[1643819248138,0.93849,2666.0,2665.0,13.7972]
[1643819248379,0.00329291,2665.7,2665.0,7.4039781]
[1643819248778,0.00329291,2665.7,2665.0,8.45243187]
[1643819249379,0.00120025,2665.5,2665.0,8.45243187]
[1643819249782,0.00624077,2665.5,2665.0,8.45747336]
[1643819250580,0.00624077,2665.5,2665.4,0.15999838]
[1643819250782,0.00120025,2665.5,2665.4,1.02684615]
[1643819250981,0.00120025,2665.5,2665.4,0.86684777]
[1643819252431,0.00120025,2665.5,2665.4,3.41684777]
[1643819253231,0.00120025,2665.5,2665.4,3.36684777]
[1643819253630,0.00120025,2665.5,2665.4,3.56085934]
[1643819254029,0.00120025,2665.5,2665.4,8.44885934]
[1643819254233,0.00120025,2665.5,2665.4,9.93635934]
[1643819254432,0.00120025,2665.5,2665.4,10.12387934]
[1643819254433,2.5e-07,2665.5,2665.4,10.12387934]
[1643819254633,4.66e-05,2665.6,2665.5,0.01226091]
[1643819254832,8.38,2666.9,2665.6,5.85]
[1643819255039,0.00261516,2666.1,2665.6,5.86642121]
[1643819255232,0.00261516,2666.1,2665.6,6.16642121]
[1643819255432,0.00261516,2666.1,2665.6,10.10572891]
[1643819255632,0.0446785,2666.8,2665.7,3.11698]
[1643819255884,0.0446785,2666.8,2665.8,0.01270023]
[1643819256081,0.04149491,2666.7,2666.6,4.8376348]
[1643819256281,2.4166828,2667.6,2666.7,5.85]
[1643819256282,0.00261516,2667.1,2666.7,5.85]
[1643819256483,0.00261516,2667.1,2666.7,5.86038466]
[1643819256782,0.00261516,2667.1,2666.8,4.92054784]
[1643819256982,8.38,2667.9,2666.9,5.2]
[1643819256983,8.2456317,2667.9,2666.9,5.2]
[1643819257181,1.2,2668.3,2667.4,0.21213559]
[1643819257385,8.38,2668.7,2667.4,0.22471408]
[1643819257585,8.38,2668.7,2667.5,0.1874]
[1643819257789,8.3262,2668.7,2667.5,0.1874]
[1643819257980,0.00715345,2668.6,2667.5,0.1874]
[1643819258179,0.14250964,2669.1,2668.1,0.19476669]
[1643819258379,0.13250964,2669.1,2667.6,1.8747277]
[1643819258580,1.0,2668.9,2667.7,0.1872]
[1643819258786,1.0,2668.9,2667.3,9.0083]
[1643819258787,0.67350964,2668.8,2667.3,9.0083]
[1643819258981,1.0,2668.7,2667.3,8.8211]
[1643819259180,0.541,2668.6,2667.3,8.8211]
[1643819259382,0.13250964,2668.5,2667.9,0.80796723]
[1643819259638,2.45183046,2668.7,2667.3,8.8211]
[1643819259639,0.541,2668.4,2667.3,9.1211]
[1643819259838,0.541,2668.3,2667.3,9.1211]
[1643819260041,0.541,2668.3,2667.4,6.2798]
[1643819260241,0.541,2668.3,2667.3,1.4421]
[1643819260739,0.491,2668.3,2668.0,0.81219772]
[1643819260939,0.491,2668.3,2668.1,0.17650543]
[1643819261743,0.491,2668.3,2667.3,1.1421]
[1643819261947,0.54606888,2668.3,2667.3,1.1421]
[1643819262644,0.541,2668.3,2667.9,1.05845996]
[1643819262846,0.541,2668.3,2667.9,0.95261397]
[1643819263045,0.55976847,2668.3,2667.9,0.95261397]
[1643819263244,0.55976847,2668.3,2667.9,0.08490151]
[1643819263484,0.55976847,2668.3,2667.3,1.1421]
[1643819263686,0.13250964,2668.2,2667.3,1.1421]
[1643819263887,2.58258892,2668.2,2667.3,1.1421]
[1643819264086,0.561,2668.1,2667.3,1.1421]
[1643819264286,1.541,2668.1,2667.7,0.85593316]
[1643819264488,0.02,2668.0,2667.7,0.19230264]
[1643819264786,0.13814297,2668.2,2667.1,7.75569471]
[1643819264787,0.541,2667.9,2667.1,7.75569471]
[1643819264989,0.541,2667.8,2667.1,7.751]
[1643819265288,0.541,2667.7,2667.0,7.5662]
[1643819265595,0.00324486,2668.0,2666.9,6.1396]
[1643819265596,0.541,2667.6,2666.9,12.7894]
[1643819265788,0.541,2667.8,2667.0,0.85249531]
[1643819266187,0.541,2667.8,2667.5,0.1716983]
[1643819266789,0.541,2667.8,2667.0,0.85249531]
[1643819267452,0.02094067,2668.2,2667.0,2.04001531]
[1643819267649,0.00094067,2668.2,2667.1,0.19863214]
[1643819267848,0.00094067,2668.2,2667.1,0.19225005]
[1643819267849,0.00484921,2667.5,2667.1,0.19225005]
[1643819268647,0.00094067,2668.2,2667.8,1.10598265]
[1643819269047,0.01939298,2668.0,2667.8,1.10598265]
[1643819269947,0.541,2668.5,2667.8,1.10598265]
[1643819270147,0.00303443,2668.0,2667.8,1.10598265]
[1643819270348,0.00303443,2668.0,2667.3,1.1306]
[1643819270649,0.00303443,2668.0,2667.3,1.4306]
[1643819270920,0.13815976,2668.0,2667.2,0.1874]
[1643819271096,0.541,2667.9,2667.2,0.1874]
[1643819271289,0.00278488,2667.8,2667.2,0.1874]
[1643819271489,0.541,2667.7,2667.4,0.20564626]
[1643819271895,0.541,2667.7,2667.2,0.1874]
[1643819272291,0.491,2667.7,2667.2,0.1874]
[1643819272692,0.00460579,2667.6,2667.1,0.00460669]
[1643819272891,0.00460579,2667.6,2667.2,0.93220685]
[1643819272892,0.541,2667.5,2667.2,0.93220685]
[1643819273091,0.541,2667.5,2667.1,0.00460669]
[1643819273494,0.541,2667.5,2666.9,6.1396]
[1643819273693,0.541,2667.5,2666.6,0.1874]
[1643819273893,0.13711554,2667.4,2667.1,0.00460653]
[1643819274093,0.13973123,2667.4,2667.1,0.00460653]
[1643819274292,0.541,2667.3,2667.1,0.00460653]
[1643819274732,0.541,2667.3,2666.7,0.87297093]
[1643819275134,2.53972241,2667.2,2667.1,0.00461235]
[1643819275335,4.02350964,2667.2,2667.1,0.00461235]
[1643819275631,3.02350964,2667.2,2667.1,0.00461235]
[1643819275832,0.541,2667.2,2667.1,0.00461235]
[1643819276039,0.541,2667.2,2666.3,10.9099]
[1643819276231,0.541,2667.2,2667.0,0.00461239]
[1643819276232,0.67350964,2667.2,2667.0,0.00461239]
[1643819276431,0.00261569,2667.1,2667.0,0.00461239]
[1643819276632,0.54361569,2667.1,2667.0,0.00461239]
[1643819277031,0.541,2667.1,2667.0,0.00461239]
[1643819277232,0.541,2667.1,2666.6,0.91785136]
[1643819277432,0.541,2667.1,2666.5,0.21396064]
[1643819277433,0.541,2667.1,2666.9,0.00452597]
[1643819277734,2.72587761,2667.0,2666.9,0.00452597]
[1643819277934,0.67350964,2667.0,2666.9,0.00452597]
[1643819278136,0.541,2667.0,2666.9,0.00452597]
[1643819278385,0.541,2667.0,2666.3,10.9099]
[1643819278386,0.541,2667.0,2666.7,0.22376469]
[1643819278588,0.541,2667.0,2666.7,0.93598185]
[1643819278785,0.541,2667.0,2666.8,0.00452565]
[1643819279788,0.541,2667.0,2666.7,0.22376469]
[1643819279987,0.541,2667.0,2666.3,10.9099]
[1643819280188,0.54361569,2667.0,2666.6,0.8949998]
[1643819280389,0.54361569,2667.0,2666.3,10.9099]
[1643819280988,0.54361569,2667.0,2666.6,0.20141019]
[1643819281292,0.541,2667.0,2666.7,0.00426361]
[1643819281893,0.00261569,2667.1,2666.6,1.11919431]
[1643819282139,0.00376662,2667.2,2666.7,0.00453834]
[1643819282738,0.00115093,2667.2,2666.7,0.00453834]
[1643819283142,0.00115093,2667.2,2666.6,1.11919431]
[1643819283455,0.541,2667.1,2666.6,1.11919431]
[1643819283639,0.54361569,2667.1,2666.8,0.00453828]
[1643819284043,2.3836408,2666.9,2666.8,0.00453828]